Cogmind - Beta 13 @@@ ROGUE MODE // 2024.04.29 @ 09:47:29 Player: RD-BNK(r) Result: Destroyed by AG-53486 with Assembled Focal Cannon Performance ------------- Evolutions (4) 2000 Regions Visited (15) 3000 Robots Destroyed (95) 475 Value Destroyed (2440) 2440 Prototype IDs (44) 880 Alien Tech Used (0) 0 Bonus (1167) 1167 TOTAL SCORE: 9962 Bonus ------- Follower Combat Kills 67 Met Data Miner 300 Met Imprinter 300 Triggered Deep Caves Wall 500 Cogmind --------- Core Integrity 0/850 Matter 195/300 Energy 46/100 System Corruption 0% Temperature Cool (27) Movement Flying (32) Location -6/Deep Caves Parts ------- > --- POWER (1) -------- (None) > --- PROPULSION (5) --- Cooled Cesium-ion Thruster > --- UTILITY (7) ------ Enhanced Optical Array Advanced Terrain Scan Processor Makeshift Hacking Suite > --- WEAPON (2) ------- Lance > --- INVENTORY (5) ---- Light Nuclear Core Nuclear Pulse Thruster Advanced Terrain Scanner Ripper Ripper Peak State ------------ > --- POWER ------------ Light Angular Momentum Engine > --- PROPULSION ------- Cooled Cesium-ion Thruster Cooled Cesium-ion Thruster Cooled Cesium-ion Thruster Cooled Cesium-ion Thruster Cooled Cesium-ion Thruster > --- UTILITY ---------- Medium Storage Unit Gravity Neutralizer Enhanced Optical Array Advanced Terrain Scanner Advanced Terrain Scan Processor Makeshift Hacking Suite Makeshift Hacking Suite > --- WEAPON ----------- Chainsword Spear > --- INVENTORY -------- Makeshift Power Source Nuclear Pulse Thruster Advanced Weight Redist. System Improved Sensor Array Melee Analysis Suite Advanced Melee Analysis Suite Reaction Control System Hacking Suite Chainsword Makeshift Axe [Rating: 75] Favorites ----------- Power Improved Ion Engine Engine Improved Ion Engine Power Core Light Nuclear Core Propulsion Light Treads Treads Light Treads Leg Aluminum Leg Wheel Compact Wheel Hover Unit Airjet Flight Unit Cooled Cesium-ion Thruster Utility Hacking Suite Device Improved Sensor Array Storage Medium Storage Unit Processor Advanced Terrain Scan Processor Hackware Hacking Suite Protection Improved Power Shielding Weapon Chainsword Energy Gun EM Pulse Gun Ballistic Gun Assault Rifle Launcher Grenade Launcher Impact Weapon Power Maul Slashing Weapon Chainsword Piercing Weapon Spear Build | -11 -10 -10 -10 -9 -8 -7 -7 -7 -7 -6 -6 -6 -6 -6 -6 ------- Run | Yrd Mat Min Exi Min Mat Fac Low Low Dat Pro Fac Low Low Zio Dee Slots Evolved 8 | . . . . . 4 2 . . . . 2 . . . . Power . | . . . . . . . . . . . . . . . . Propulsion 3 | . . . . . 2 . . . . . 1 . . . . Utility 5 | . . . . . 2 2 . . . . 1 . . . . Weapon . | . . . . . . . . . . . . . . . . Parts Attached 149 | 3 11 1 . 7 40 20 17 1 . 1 21 6 6 12 3 Power 10 | . 2 . . 1 1 1 2 . . . 2 . 1 . . Engine 9 | . 2 . . 1 1 1 1 . . . 2 . 1 . . Core 1 | . . . . . . . 1 . . . . . . . . Reactor . | . . . . . . . . . . . . . . . . Propulsion 49 | 2 2 . . 1 22 9 4 . . 1 8 . . . . Treads 27 | 2 2 . . 1 17 1 2 . . . 2 . . . . Leg 2 | . . . . . . . 2 . . . . . . . . Wheel 6 | . . . . . 4 . . . . 1 1 . . . . Hover 5 | . . . . . . 5 . . . . . . . . . Flight 9 | . . . . . 1 3 . . . . 5 . . . . Utility 54 | 1 3 . . 4 5 5 7 1 . . 8 5 4 8 3 Device 27 | 1 1 . . 1 3 2 6 . . . 3 3 2 2 3 Storage 6 | . 2 . . 2 1 1 . . . . . . . . . Processor 3 | . . . . . . 2 . . . . 1 . . . . Hackware 4 | . . . . 1 . . . 1 . . 1 . . 1 . Protection 14 | . . . . . 1 . 1 . . . 3 2 2 5 . Artifact . | . . . . . . . . . . . . . . . . Weapon 36 | . 4 1 . 1 12 5 4 . . . 3 1 1 4 . Energy Gun 8 | . 2 . . 1 5 . . . . . . . . . . Energy Cannon . | . . . . . . . . . . . . . . . . Ballistic Gun 5 | . 2 . . . 3 . . . . . . . . . . Ballistic Cannon . | . . . . . . . . . . . . . . . . Launcher 5 | . . 1 . . 2 . 1 . . . 1 . . . . Special Weapon . | . . . . . . . . . . . . . . . . Impact Weapon 1 | . . . . . 1 . . . . . . . . . . Slashing Weapon 9 | . . . . . 1 3 2 . . . 1 . . 2 . Piercing Weapon 8 | . . . . . . 2 1 . . . 1 1 1 2 . Special Melee Weapon . | . . . . . . . . . . . . . . . . Unidentified Prototypes 5 | . . . . . 4 . . . . . 1 . . . . Corrupted Parts 1 | . . . . 1 . . . . . . . . . . . System Corruption 1 | . . . . 1 . . . . . . . . . . . Parts Lost 37 | . 3 . . . 12 4 7 . . . 2 . . . 9 Power 3 | . . . . . . . 1 . . . 1 . . . 1 Propulsion 19 | . 1 . . . 6 3 4 . . . 1 . . . 4 Utility 5 | . . . . . . 1 1 . . . . . . . 3 Weapon 10 | . 2 . . . 6 . 1 . . . . . . . 1 Highest Loss Streak 7 | . 2 . . . 4 4 7 . . . 1 . . . 6 To Critical Strikes 1 | . . . . . 1 . . . . . . . . . . Average Slot Usage (%) 93 | . 98 100 100 99 88 92 84 92 92 94 96 100 99 100 89 Engine 8 | . 14 14 14 13 9 7 4 7 7 7 6 6 5 6 6 Treads 17 | . 27 28 28 28 28 2 2 7 7 7 8 . . . . Leg 3 | . . . . . . . 10 15 15 15 6 . . . . Wheel 1 | . . . . . 3 . . . . 2 4 . . . . Hover 1 | . . . . . . 18 . . . . . . . . . Flight 4 | . . . . . . 1 6 . . . 9 33 33 33 26 Device 13 | . 14 14 14 13 13 14 14 15 15 15 9 12 11 12 6 Storage 9 | . 14 14 14 14 9 7 7 7 7 7 6 6 6 6 6 Processor 6 | . . . . . . 15 15 15 15 15 13 13 13 13 13 Hackware 6 | . . . . . 9 7 7 7 7 7 13 13 13 13 12 Protection 1 | . . . . . 4 . . . . . 3 . 1 . 3 Energy Gun 4 | . 17 23 14 13 1 . . . . . . . . . . Ballistic Gun 1 | . 9 . . . 1 . . . . . . . . . . Launcher 2 | . . 4 14 14 . . 1 . . . . . . . . Slashing Weapon 4 | . . . . . 7 14 3 7 7 7 7 3 . . . Piercing Weapon 2 | . . . . . . . 5 7 7 7 4 8 12 13 12 Naked Turns . | . . . . . . . . . . . . . . . . Heaviest Build 100 | 15 52 53 53 53 100 28 24 22 22 22 33 24 28 31 30 Greatest Support 83 | 40 40 40 40 40 83 32 29 28 28 28 42 30 45 30 42 Greatest Overweight (x) 7 | . 1 1 1 2 7 3 1 . . 1 4 . . 1 . Average Overweight (x) . | . . 1 1 1 2 . . . . . . . . . . Largest Inventory Capacity 25 | 8 20 20 20 25 25 25 10 10 10 10 10 10 10 10 10 Average Capacity 16 | 8 13 20 20 20 24 10 10 10 10 10 10 10 10 10 10 Most Carried 25 | 6 15 13 16 20 25 24 10 10 10 10 10 10 10 10 10 Average Carried 14 | 4 9 13 14 19 22 10 8 9 10 10 9 10 10 9 10 Final Capacity 25 | 8 20 20 20 20 25 10 10 10 10 10 10 10 10 10 5 Final Carried 25 | 4 13 13 16 20 25 10 7 10 10 10 10 10 10 10 5 Class Distribution -------------------- 42% | Mutant 24% | Assassin 9% | Infiltrator-Mutant 8% | Hacker-Scout 4% | Scavenger-Mutant 4% | Hacker-Assassin Dominant Class ---------------- Mutant | -10/Materials Mutant | -10/Mines Mutant | -10/Exiles Mutant | -9/Mines Mutant | -8/Materials Assassin | -7/Factory Assassin | -7/Lower Caves Assassin | -7/Lower Caves Assassin | -7/Data Miner Assassin | -6/Proximity Caves Hacker-Assassin | -6/Factory Hacker-Scout | -6/Lower Caves Hacker-Scout | -6/Lower Caves Hacker-Scout | -6/Zion Derelict-Sprinter | -6/Deep Caves Resources | -11 -10 -10 -10 -9 -8 -7 -7 -7 -7 -6 -6 -6 -6 -6 -6 ----------- Run | Yrd Mat Min Exi Min Mat Fac Low Low Dat Pro Fac Low Low Zio Dee Matter Collected 1851 | 242 271 . . 73 508 150 237 10 . 10 159 123 68 . . Remotely . | . . . . . . . . . . . . . . . . Salvage Created 3247 | 47 622 . . 19 1526 174 328 . . . 403 65 63 . . Parts 197 | 7 41 . . 6 92 8 16 . . . 20 6 1 . . Haulers Intercepted 6 | . 1 . . . 5 . . . . . . . . . . Recyclers Shooed . | . . . . . . . . . . . . . . . . Parts Field Recycled . | . . . . . . . . . . . . . . . . Retrieved Matter . | . . . . . . . . . . . . . . . . Parts Self-Destructed 16 | . . . . . . . 9 . . . . 6 1 . . Prevented . | . . . . . . . . . . . . . . . . Kills | -11 -10 -10 -10 -9 -8 -7 -7 -7 -7 -6 -6 -6 -6 -6 -6 ------- Run | Yrd Mat Min Exi Min Mat Fac Low Low Dat Pro Fac Low Low Zio Dee Combat Hostiles Destroyed 64 | . 12 . . 3 29 2 9 . . . 5 3 1 . . Melee 30 | . . . . . 17 2 2 . . . 5 3 1 . . Guns 15 | . 10 . . . 5 . . . . . . . . . . AOE 19 | . 2 . . 3 7 . 7 . . . . . . . . Classes Destroyed 14 | 1 6 . . . 5 . 1 . . . 1 . . . . Worker 5 | . 1 . . . 3 . . . . . 1 . . . . Builder 3 | . . . . . 3 . . . . . . . . . . Tunneler 2 | 2 . . . . . . . . . . . . . . . Hauler 6 | . 1 . . . 5 . . . . . . . . . . Recycler 4 | . . . . . 2 1 . . . . 1 . . . . Minesweeper 1 | . . . . . . . 1 . . . . . . . . Mechanic 1 | . . . . . 1 . . . . . . . . . . Operator 4 | . 3 . . . 1 . . . . . . . . . . Watcher 5 | . 2 . . . 2 . . . . . 1 . . . . Swarmer 28 | . 2 . . 3 12 1 4 . . . 3 3 . . . Grunt 21 | . 10 . . . 7 . 4 . . . . . . . . Duelist 1 | . . . . . 1 . . . . . . . . . . Sentry 13 | . . . . . 9 1 1 . . . 1 . 1 . . Programmer 1 | . . . . . . . . . . . 1 . . . . Best Kill Streak 9 | 1 2 . . 3 5 1 9 . . . 3 3 1 . . Combat Bots Only 9 | . 2 . . 3 4 1 9 . . . 3 3 1 . . Max Kills in Single Turn 4 | 1 1 . . 2 4 1 3 . . . 1 1 1 . . Gunslinging . | . . . . . . . . . . . . . . . . Exploded 4 | . 1 . . 2 4 . 3 . . . . . . . . Melee 1 | . . . . . 1 1 1 . . . 1 1 1 . . Uniques/NPCs Destroyed . | . . . . . . . . . . . . . . . . Combat | -11 -10 -10 -10 -9 -8 -7 -7 -7 -7 -6 -6 -6 -6 -6 -6 -------- Run | Yrd Mat Min Exi Min Mat Fac Low Low Dat Pro Fac Low Low Zio Dee Hostile Shots Fired 614 | . 109 . . 1 178 84 50 2 . 2 70 9 33 . 76 Missed 200 | . 30 . . . 49 27 14 1 . . 21 3 18 . 37 Damage Taken 5838 | . 841 . . 42 1673 491 710 26 . 38 499 87 114 . 1317 Core 1563 | . 169 . . 11 186 114 194 . . . 61 13 33 . 782 Absorbed by Shields . | . . . . . . . . . . . . . . . . Redirected to Shielding 65 | . . . . . 21 . . . . . . 20 24 . . Regen/Repaired (Parts) 548 | . . . . . 349 . . . . . . . . 199 . Core Remaining (%) 62 | 100 . . . 28 66 . . . . 56 . . . . . Volleys Fired 104 | 4 72 . . 2 20 . 4 . . . 2 . . . . Largest 2 | 2 2 . . 1 2 . 1 . . . 1 . . . . Hottest 80 | 60 80 . . 30 80 . 36 . . . 36 . . . . Shots Fired 186 | 8 135 . . 2 35 . 4 . . . 2 . . . . Gun 173 | 8 135 . . . 30 . . . . . . . . . . Cannon . | . . . . . . . . . . . . . . . . Launcher 13 | . . . . 2 5 . 4 . . . 2 . . . . Special . | . . . . . . . . . . . . . . . . Kinetic 102 | 4 84 . . . 14 . . . . . . . . . . Thermal . | . . . . . . . . . . . . . . . . Explosive 13 | . . . . 2 5 . 4 . . . 2 . . . . Electromagnetic 71 | 4 51 . . . 16 . . . . . . . . . . Robot Hit Streak 11 | 3 11 . . . 11 . 1 . . . . . . . . Robot Miss Streak 5 | 2 5 . . . 3 . 1 . . . . . . . . Penetration Max . | . . . . . . . . . . . . . . . . Secondary Targets 3 | . 2 . . . 1 . . . . . . . . . . Max Gunslinging Chain 1 | . 1 . . . 1 . . . . . . . . . . Shots Hit Robots 232 | 5 82 . . . 99 10 8 . . . 19 4 3 . 2 Core Hits 122 | 2 34 . . 3 49 3 15 . . . 9 3 2 . 2 Critical Kills . | . . . . . . . . . . . . . . . . Critical Parts Destroyed . | . . . . . . . . . . . . . . . . Critical Strikes 11 | . . . . . 8 1 1 . . . 1 . . . . Sever 11 | . . . . . 8 1 1 . . . 1 . . . . Melee Attacks 234 | . . . . . 113 25 20 3 1 3 51 9 4 . 5 Impact . | . . . . . . . . . . . . . . . . Slashing 176 | . . . . . 113 23 6 2 1 3 27 1 . . . Piercing 58 | . . . . . . 2 14 1 . . 24 8 4 . 5 Sneak Attacks 27 | . . . . . 20 1 2 . . . 4 . . . . Combat Hostiles . | . . . . . . . . . . . . . . . . Follow-up Attacks 12 | . . . . . . 2 3 . . . 5 1 1 . . Damage Inflicted 8383 | 65 1107 . . 187 4565 403 893 . . . 809 129 117 . 108 Guns 1410 | 65 1044 . . . 301 . . . . . . . . . . Cannons . | . . . . . . . . . . . . . . . . Explosions 1592 | . 50 . . 184 781 . 577 . . . . . . . . Melee 5365 | . . . . . 3483 403 316 . . . 809 129 117 . 108 Ramming 16 | . 13 . . 3 . . . . . . . . . . . Kinetic 694 | 25 508 . . . 161 . . . . . . . . . . Thermal 77 | . 50 . . . 27 . . . . . . . . . . Explosive 1515 | . . . . 184 754 . 577 . . . . . . . . Electromagnetic 716 | 40 536 . . . 140 . . . . . . . . . . Impact . | . . . . . . . . . . . . . . . . Slashing 4659 | . . . . . 3483 403 199 . . . 536 38 . . . Piercing 706 | . . . . . . . 117 . . . 273 91 117 . 108 Highest Corruption 1 | . . . . 1 . . . . . . . . . . . Average Corruption 1 | . . . . 1 . . . . . . . . . . . Corruption Purged . | . . . . . . . . . . . . . . . . Corruption Blocked . | . . . . . . . . . . . . . . . . Overload Shots . | . . . . . . . . . . . . . . . . Overflow Damage 404 | . . . . . 266 40 29 . . . 69 . . . . Projectiles . | . . . . . . . . . . . . . . . . Explosions 29 | . . . . . 10 . 19 . . . . . . . . Melee 375 | . . . . . 256 40 10 . . . 69 . . . . Knockbacks . | . . . . . . . . . . . . . . . . Impact . | . . . . . . . . . . . . . . . . Kinetic . | . . . . . . . . . . . . . . . . Secondary . | . . . . . . . . . . . . . . . . Self-Inflicted Damage 320 | . 40 . . . 103 . 139 . . . 38 . . . . Shots 8 | . 1 . . . 3 . 3 . . . 1 . . . . Rammed 2 | . 1 . . 1 . . . . . . . . . . . Targets Rammed 3 | . 2 . . 1 . . . . . . . . . . . Kicked . | . . . . . . . . . . . . . . . . Crushed 1 | . 1 . . . . . . . . . . . . . . Highest Temperature 165 | . 60 . . . 42 . 9 . . . . . 165 . 76 Average Temperature 21 | . 15 . . . 12 . 9 . . . . . 118 . 33 Received Heat Transfer 1349 | . 243 . . . 459 114 72 . . 18 90 . 36 . 317 Siege Activations . | . . . . . . . . . . . . . . . . Robots Corrupted . | . . . . . . . . . . . . . . . . Combat Hostiles . | . . . . . . . . . . . . . . . . Parts Fried 2 | . 1 . . . 1 . . . . . . . . . . Impact Corruptions . | . . . . . . . . . . . . . . . . Robots Melted . | . . . . . . . . . . . . . . . . Combat Hostiles . | . . . . . . . . . . . . . . . . Parts Melted . | . . . . . . . . . . . . . . . . Heat Transferred 100 | . 50 . . . 50 . . . . . . . . . . Parts Sabotaged . | . . . . . . . . . . . . . . . . Parts Stolen . | . . . . . . . . . . . . . . . . Parts Stripped . | . . . . . . . . . . . . . . . . Power Chain Reactions 3 | . 2 . . . 1 . . . . . . . . . . Alert | -11 -10 -10 -10 -9 -8 -7 -7 -7 -7 -6 -6 -6 -6 -6 -6 ------- Run | Yrd Mat Min Exi Min Mat Fac Low Low Dat Pro Fac Low Low Zio Dee Peak Influence 352 | 10 174 22 . 133 352 327 . . . . 172 . . . . Initial 107 | . 6 22 . . . 107 . . . . 18 . . . . Average 124 | 4 65 22 . 27 194 177 . . . . 55 . . . . Maximum Alert Level 1 | . . . . . 1 1 . . . . . . . . . Low Security (%) 77 | 100 100 100 . 100 55 74 . . . . 100 . . . . Level 1 22 | . . . . . 44 25 . . . . . . . . . Level 2 . | . . . . . . . . . . . . . . . . Level 3 . | . . . . . . . . . . . . . . . . Level 4 . | . . . . . . . . . . . . . . . . Level 5 . | . . . . . . . . . . . . . . . . High Security . | . . . . . . . . . . . . . . . . Max Security . | . . . . . . . . . . . . . . . . Squads Dispatched 8 | . 3 . . . 1 . . 1 . . 3 . . . . Investigation 1 | . 1 . . . . . . . . . . . . . . Extermination 2 | . . . . . . . . . . . 2 . . . . Reinforcement 4 | . 2 . . . 1 . . . . . 1 . . . . Assault 1 | . . . . . . . . 1 . . . . . . . Garrison . | . . . . . . . . . . . . . . . . Intercept . | . . . . . . . . . . . . . . . . Searches Triggered . | . . . . . . . . . . . . . . . . Construction Impeded 1 | . . . . . . . . . . . 1 . . . . Haulers Reinforced . | . . . . . . . . . . . . . . . . Active Scanning Responses . | . . . . . . . . . . . . . . . . Cargo Convoy Interrupts . | . . . . . . . . . . . . . . . . Stealth | -11 -10 -10 -10 -9 -8 -7 -7 -7 -7 -6 -6 -6 -6 -6 -6 --------- Run | Yrd Mat Min Exi Min Mat Fac Low Low Dat Pro Fac Low Low Zio Dee Distress Signals 6 | . 2 . . . 4 . . . . . . . . . . Communications Jammed 136 | . . . . . 136 . . . . . . . . . . Distress Signals 136 | . . . . . 136 . . . . . . . . . . Times Spotted 161 | . 28 . . 4 61 7 14 5 . 2 9 3 2 . 26 Peak Tracking Total 42 | . 4 . . 4 7 4 9 9 . 2 3 3 3 . 42 Tactical Retreats 9 | . . . . . 3 . 2 . . 1 . . 1 . 2 Traps | -11 -10 -10 -10 -9 -8 -7 -7 -7 -7 -6 -6 -6 -6 -6 -6 ------- Run | Yrd Mat Min Exi Min Mat Fac Low Low Dat Pro Fac Low Low Zio Dee Traps Triggered 2 | . 1 . . 1 . . . . . . . . . . . Indirectly . | . . . . . . . . . . . . . . . . Trap Hack Attempts . | . . . . . . . . . . . . . . . . Triggered . | . . . . . . . . . . . . . . . . Disarmed . | . . . . . . . . . . . . . . . . Reprogrammed . | . . . . . . . . . . . . . . . . Reused . | . . . . . . . . . . . . . . . . Traps Extracted . | . . . . . . . . . . . . . . . . Installed . | . . . . . . . . . . . . . . . . Triggered 1 | . . . . . . . . . . 1 . . . . . Machines | -11 -10 -10 -10 -9 -8 -7 -7 -7 -7 -6 -6 -6 -6 -6 -6 ---------- Run | Yrd Mat Min Exi Min Mat Fac Low Low Dat Pro Fac Low Low Zio Dee Machines Disabled 8 | . 2 . . 3 2 1 . . . . . . . . . Max in Single Turn 2 | . 1 . . 1 2 1 . . . . . . . . . Garrison Access 3 | . . . . . 1 1 . . . . 1 . . . . Machines Repaired . | . . . . . . . . . . . . . . . . Machines Dismantled . | . . . . . . . . . . . . . . . . Machines Sabotaged . | . . . . . . . . . . . . . . . . Overloaded Fab Kills . | . . . . . . . . . . . . . . . . Hacking | -11 -10 -10 -10 -9 -8 -7 -7 -7 -7 -6 -6 -6 -6 -6 -6 --------- Run | Yrd Mat Min Exi Min Mat Fac Low Low Dat Pro Fac Low Low Zio Dee Machines Accessed 52 | . 7 . 2 1 14 12 1 1 4 . 9 1 . . . Terminals 32 | . 5 . . . 10 9 . . . . 7 1 . . . Fabricators 2 | . . . . . . 2 . . . . . . . . . Repair Stations 3 | . 1 . . . 2 . . . . . . . . . . Recycling Units 3 | . 1 . . . 1 . . . . . 1 . . . . Scanalyzers . | . . . . . . . . . . . . . . . . Garrison Access 3 | . . . . . 1 1 . . . . 1 . . . . Total Hacks 141 | . 13 . 2 1 39 26 1 1 34 . 23 1 . . . Successful 102 | . 5 . 2 1 31 13 1 1 34 . 13 1 . . . Failed 39 | . 8 . . . 8 13 . . . . 10 . . . . Catastrophic 6 | . 1 . . . . 4 . . . . 1 . . . . Database Lockouts . | . . . . . . . . . . . . . . . . Manual 71 | . 12 . 1 . 26 12 . . . . 12 . . 8 . Terminals 76 | . 9 . . . 29 18 . . . . 19 1 . . . Fabricators 5 | . . . . . . 5 . . . . . . . . . Repair Stations 7 | . 1 . . . 6 . . . . . . . . . . Recycling Units 8 | . 3 . . . 3 . . . . . 2 . . . . Scanalyzers . | . . . . . . . . . . . . . . . . Garrison Access 6 | . . . . . 1 3 . . . . 2 . . . . Terminal Hacks 68 | . 2 . 2 1 12 8 1 1 34 . 6 1 . . . Record 13 | . . . 1 . . . . . 11 . . 1 . . . Part Schematic 14 | . . . . . . 1 . . 13 . . . . . . Robot Schematic 7 | . . . . . . . . . 7 . . . . . . Robot Analysis 1 | . . . . . . 1 . . . . . . . . . Prototype ID Bank 5 | . . . . . 2 . . . 3 . . . . . . Open Door 3 | . . . . 1 . . 1 1 . . . . . . . Level Access Points 2 | . . . . . 1 . . . . . 1 . . . . Branch Access Points 2 | . . . . . . 1 . . . . 1 . . . . Terminal Index 4 | . 1 . . . 1 1 . . . . 1 . . . . Garrison Index 3 | . . . . . 1 1 . . . . 1 . . . . Alert Level 1 | . . . . . 1 . . . . . . . . . . Unreport Threat 1 | . . . . . 1 . . . . . . . . . . Locate Traps 2 | . 1 . . . . 1 . . . . . . . . . Dispatch Records 1 | . . . . . 1 . . . . . . . . . . Recall Extermination 1 | . . . . . . . . . . . 1 . . . . Hauler Manifests 2 | . . . . . 1 . . . . . 1 . . . . Registered Components 2 | . . . . . 1 1 . . . . . . . . . Registered Prototypes 2 | . . . . . 1 1 . . . . . . . . . Zone Layout 1 | . . . . . 1 . . . . . . . . . . Derelict Proto ID Bank 1 | . . . 1 . . . . . . . . . . . . Fabricator Hacks 1 | . . . . . . 1 . . . . . . . . . Network Status 1 | . . . . . . 1 . . . . . . . . . Repair Station Hacks 6 | . . . . . 6 . . . . . . . . . . Scan Component 3 | . . . . . 3 . . . . . . . . . . Repair 3 | . . . . . 3 . . . . . . . . . . Recycling Unit Hacks 2 | . . . . . 1 . . . . . 1 . . . . Report Inventory 1 | . . . . . . . . . . . 1 . . . . Retrieve Components 1 | . . . . . 1 . . . . . . . . . . Scanalyzer . | . . . . . . . . . . . . . . . . Garrison Access Hacks 3 | . . . . . 1 1 . . . . 1 . . . . Seal Access 3 | . . . . . 1 1 . . . . 1 . . . . Unauthorized Hacks 22 | . 3 . . . 11 3 . . . . 5 . . . . Terminals 18 | . 1 . . . 10 2 . . . . 5 . . . . Track 2 | . . . . . 2 . . . . . . . . . . Assimilate 8 | . . . . . 5 1 . . . . 2 . . . . Botnet 4 | . . . . . 2 . . . . . 2 . . . . Operators 4 | . 1 . . . 1 1 . . . . 1 . . . . Fabricators 1 | . . . . . . 1 . . . . . . . . . Liberate 1 | . . . . . . 1 . . . . . . . . . Repair Stations 1 | . 1 . . . . . . . . . . . . . . Mechanics 1 | . 1 . . . . . . . . . . . . . . Recycling Units 2 | . 1 . . . 1 . . . . . . . . . . Recyclers 2 | . 1 . . . 1 . . . . . . . . . . Scanalyzers . | . . . . . . . . . . . . . . . . Garrison Access . | . . . . . . . . . . . . . . . . Data Cores Recovered 1 | . 1 . . . . . . . . . . . . . . Used 1 | . 1 . . . . . . . . . . . . . . Hacking Detections 31 | . 6 . . . 8 11 . . . . 6 . . . . Full Trace Events 1 | . . . . . 1 . . . . . . . . . . Feedback Events . | . . . . . . . . . . . . . . . . Feedback Blocked . | . . . . . . . . . . . . . . . . Robot Schematics Acquired 7 | . . . . . . . . . 7 . . . . . . Robots Built . | . . . . . . . . . . . . . . . . Authchips . | . . . . . . . . . . . . . . . . Time . | . . . . . . . . . . . . . . . . Total Robot Build Rating . | . . . . . . . . . . . . . . . . Part Schematics Acquired 14 | . . . . . . 1 . . 13 . . . . . . Parts Built . | . . . . . . . . . . . . . . . . Authchips . | . . . . . . . . . . . . . . . . Time . | . . . . . . . . . . . . . . . . Total Part Build Rating . | . . . . . . . . . . . . . . . . Parts Repaired 3 | . . . . . 3 . . . . . . . . . . Time 78 | . . . . . 78 . . . . . . . . . . Parts Recycled . | . . . . . . . . . . . . . . . . Recycled Matter . | . . . . . . . . . . . . . . . . Retrieved Matter . | . . . . . . . . . . . . . . . . Retrieved Components 9 | . . . . . 9 . . . . . . . . . . Parts Scanalyzed . | . . . . . . . . . . . . . . . . Part Schematics Acquired . | . . . . . . . . . . . . . . . . Parts Damaged . | . . . . . . . . . . . . . . . . Bothacking | -11 -10 -10 -10 -9 -8 -7 -7 -7 -7 -6 -6 -6 -6 -6 -6 ------------ Run | Yrd Mat Min Exi Min Mat Fac Low Low Dat Pro Fac Low Low Zio Dee Used RIF Installer . | . . . . . . . . . . . . . . . . Robots Hacked . | . . . . . . . . . . . . . . . . Non-combat . | . . . . . . . . . . . . . . . . Combat . | . . . . . . . . . . . . . . . . Robot Hacks Applied . | . . . . . . . . . . . . . . . . Relay Couplers Released . | . . . . . . . . . . . . . . . . Fabnet Peak Effective % . | . . . . . . . . . . . . . . . . Robots Rewired 3 | . . . 3 . . . . . . . . . . . . Allies Hacked . | . . . . . . . . . . . . . . . . Hacks Repelled . | . . . . . . . . . . . . . . . . Allies | -11 -10 -10 -10 -9 -8 -7 -7 -7 -7 -6 -6 -6 -6 -6 -6 -------- Run | Yrd Mat Min Exi Min Mat Fac Low Low Dat Pro Fac Low Low Zio Dee Total Allies 11 | . . . 3 . 3 3 . . . . 2 . . . . Largest Group 5 | . . . 3 3 3 5 . . . . 2 2 2 2 2 Highest-Rated Group 110 | . . . 37 37 30 110 . . . . 36 36 36 36 36 Highest-Rated Ally 32 | . . . 21 21 21 32 . . . . 26 26 26 26 26 Total Orders 15 | . . . . 2 7 . . . . . . 3 3 . . STAY 9 | . . . . 1 4 . . . . . . 2 2 . . FOLLOW 6 | . . . . 1 3 . . . . . . 1 1 . . Ally Attacks 28 | . . . . 4 14 10 . . . . . . . . . Total Damage 376 | . . . . 55 110 211 . . . . . . . . . Kills 5 | . . . . 1 . 4 . . . . . . . . . Allies Corrupted . | . . . . . . . . . . . . . . . . Allies Melted . | . . . . . . . . . . . . . . . . Intel | -11 -10 -10 -10 -9 -8 -7 -7 -7 -7 -6 -6 -6 -6 -6 -6 ------- Run | Yrd Mat Min Exi Min Mat Fac Low Low Dat Pro Fac Low Low Zio Dee Robot Analysis Total 1 | . . . . . . 1 . . . . . . . . . Derelict Logs Recovered 10 | . . . . 2 . . . 2 . 1 . 1 2 2 . Drone Launches . | . . . . . . . . . . . . . . . . Drone Recoveries . | . . . . . . . . . . . . . . . . Exploration | -11 -10 -10 -10 -9 -8 -7 -7 -7 -7 -6 -6 -6 -6 -6 -6 ------------- Run | Yrd Mat Min Exi Min Mat Fac Low Low Dat Pro Fac Low Low Zio Dee Turns Passed 14296 | 84 1310 314 924 1297 3740 856 1911 990 150 591 921 403 332 339 134 Spaces Moved 9796 | 27 555 131 367 506 1412 907 1164 507 93 343 1013 791 658 892 430 Core 3 | . . . . . . . 3 . . . . . . . . Treads 3530 | 27 555 131 367 506 827 . 341 507 93 176 . . . . . Legs 371 | . . . . . . . 371 . . . . . . . . Wheels 1269 | . . . . . 585 . . . . 167 517 . . . . Hover 783 | . . . . . . 783 . . . . . . . . . Flight 3840 | . . . . . . 124 449 . . . 496 791 658 892 430 Fastest Speed 5 | 160 160 240 240 240 130 34 34 160 160 115 23 23 5 23 11 Average Speed 117 | 160 171 240 240 240 216 69 139 160 160 138 65 23 22 23 24 Slowest Speed 480 | 160 240 240 240 320 480 240 190 160 160 160 365 23 23 103 29 Overloaded Moves 57 | . . . . . . . . . . . . . 13 . 44 Propulsion Burnouts . | . . . . . . . . . . . . . . . . Robots Hopped 2 | . . . . . . 2 . . . . . . . . . Cave-ins Triggered . | . . . . . . . . . . . . . . . . Exploration Rate (%) 68 | 3 90 32 87 98 91 23 97 82 79 54 28 91 81 87 77 Regions Visited 15 Branch Regions 11 Pre-discovered Areas 4 | . . . 1 . . . . . 1 . . . . 2 . Known Exits Taken 4 | . . . . . 1 1 . . . . 1 1 . . . Unknown Exits Taken 11 | 1 1 1 1 1 . . 1 1 1 1 . . 1 1 . Scrap Searched 23 | . . . . 3 . . 5 2 . 2 . 2 7 2 . Spaces Dug 88 | . . . . . 25 9 13 2 1 3 33 2 . . . Terrain Destroyed 136 | . 7 . . 5 43 9 31 2 1 3 33 2 . . . Melee 46 | . . . . . 5 9 6 2 1 3 18 2 . . . Projectile 1 | . . . . . 1 . . . . . . . . . . AOE 89 | . 7 . . 5 37 . 25 . . . 15 . . . . Terrain Rammed . | . . . . . . . . . . . . . . . . Walls Destroyed . | . . . . . . . . . . . . . . . . Machines Disabled . | . . . . . . . . . . . . . . . . Actions | -11 -10 -10 -10 -9 -8 -7 -7 -7 -7 -6 -6 -6 -6 -6 -6 --------- Run | Yrd Mat Min Exi Min Mat Fac Low Low Dat Pro Fac Low Low Zio Dee Total 12158 | 59 782 131 411 584 1946 1103 1415 683 93 455 1198 997 832 1020 449 Wait 1704 | 24 125 . . 60 303 127 209 169 . 109 102 190 164 112 10 Move 9777 | 26 554 130 366 505 1411 902 1163 506 92 342 1012 790 657 891 430 Hop 2 | . . . . . . 2 . . . . . . . . . Pick Up 72 | . 12 . 3 6 29 7 2 4 . . 6 1 . 2 . Fast Attach 52 | 1 3 . . 3 14 10 5 . . 1 11 1 2 1 . Attach 27 | . 2 . . . 11 8 3 . . . 3 . . . . Detach 3 | . . . . . 2 . 1 . . . . . . . . Swap 71 | 2 6 1 . 4 16 2 9 1 . . 7 5 4 11 3 Drop 87 | 2 6 . . 3 27 23 3 1 . . 14 2 2 3 1 Fire 104 | 4 72 . . 2 20 . 4 . . . 2 . . . . Melee 214 | . . . . . 113 22 16 2 1 3 41 8 3 . 5 Ram . | . . . . . . . . . . . . . . . . Kick . | . . . . . . . . . . . . . . . . Crush 3 | . 2 . . 1 . . . . . . . . . . . Escape Stasis . | . . . . . . . . . . . . . . . . Rewire 42 | . . . 42 . . . . . . . . . . . . Trap . | . . . . . . . . . . . . . . . . Miscellaneous . | . . . . . . . . . . . . . . . . Route ------- -11/Scrapyard -10/Materials (discovered 6 exits: [*Mat x3] / [*Min x2] / [*Sub]) -10/Mines -10/Exiles -9/Mines (discovered 2 exits: *Mat x2) -8/Materials (discovered 3 exits: *Fac x3) -7/Factory (discovered 6 exits: *Fac x2 / Sto x2 / *Low x2) -7/Lower Caves -7/Lower Caves -7/Data Miner -6/Proximity Caves -6/Factory (discovered 8 exits: *Fac x4 / *Low x2 / Ext x2) -6/Lower Caves -6/Lower Caves (discovered 2 exits: *Fac / *Zio) -6/Zion (discovered 2 exits: [*Dee] / [*Pro]) -6/Deep Caves History --------- Turn | Location | Event 5 | -11/Scrapyard | Discovered new exit (range 3) 85 | -11/Scrapyard | Entered Materials 308 | -10/Materials | Build established: Mutant 529 | -10/Materials | Discovered new exit (range 3) 652 | -10/Materials | Discovered new exit (range 8) 788 | -10/Materials | Core integrity fell below 50% 913 | -10/Materials | Discovered new exit (range 8) 1071 | -10/Materials | Discovered new exit (range 8) 1136 | -10/Materials | Discovered new exit (range 11) 1334 | -10/Materials | Discovered new exit (range 15) 1395 | -10/Materials | Entered Mines 1578 | -10/Mines | Deemed a non-threat by the Exiles lab entrance 1578 | -10/Mines | Discovered new exit (range 5) 1709 | -10/Mines | Entered Exiles 1709 | -10/Exiles | Found Exiles lab destroyed 2009 | -10/Exiles | Opened EX-Vault 2021 | -10/Exiles | Found Gui. Plasma Cannon 2533 | -10/Exiles | Learned location of Zion (-6) 2614 | -10/Exiles | Discovered new exit (range 10) 2633 | -10/Exiles | Entered Mines 2633 | -9/Mines | Accompanied by 3 allies 2642 | -9/Mines | Met a Derelict who couldn't figure out how to use a Trap Extractor 3104 | -9/Mines | Discovered new exit (range 5) 3181 | -9/Mines | Discovered new exit (range 6) 3477 | -9/Mines | Received a Rocket Launcher from a helpful Derelict 3539 | -9/Mines | Learned Materials terminal intel 3930 | -9/Mines | Entered Materials 3930 | -8/Materials | Accompanied by 2 allies 3930 | -8/Materials | Evolved 4 slots: Propulsion x2, Utility x2 3931 | -8/Materials | Loaded intel: 12 terminal locations 4059 | -8/Materials | Lost 3 allies 4391 | -8/Materials | Repaired Lgt. Treads 5417 | -8/Materials | Discovered new exit (range 10) 5520 | -8/Materials | Lost 4 parts (3n1w) 6217 | -8/Materials | Build established: Infiltrator-Mutant 6240 | -8/Materials | Identified exit to Factory 6610 | -8/Materials | Repaired Lgt. Treads 6637 | -8/Materials | Repaired Lgt. Treads 7632 | -8/Materials | Build established: Scavenger-Mutant 7670 | -8/Materials | Entered Factory 7670 | -7/Factory | Accompanied by 2 allies 7670 | -7/Factory | Evolved 2 slots: Utility x2 7671 | -7/Factory | Identified exit to Storage 7773 | -7/Factory | Discovered new exit (range 5) 7868 | -7/Factory | Identified exit to Lower Caves 7979 | -7/Factory | Build established: Ninja 8155 | -7/Factory | Lost 4 parts (3n1u) 8362 | -7/Factory | Build established: Assassin 8517 | -7/Factory | Discovered new exit (range 4) 8526 | -7/Factory | Entered Lower Caves 9031 | -7/Lower Caves | Attracted the attention of an 0b10 outpost 9098 | -7/Lower Caves | Destroyed 9 combat bots 9106 | -7/Lower Caves | Lost 7 parts (1p4n1u1w) 9339 | -7/Lower Caves | Build established: Mutant 9396 | -7/Lower Caves | Discovered new exit (range 12) 9407 | -7/Lower Caves | Encountered a Warlord checkpoint 9848 | -7/Lower Caves | Build established: Assassin 10437 | -7/Lower Caves | Entered another Lower Caves area 10743 | -7/Lower Caves | Encountered a Warlord checkpoint 10800 | -7/Lower Caves | Learned Factory stockpile data 11027 | -7/Lower Caves | Learned Factory stockpile data 11343 | -7/Lower Caves | Discovered new exit (range 9) 11406 | -7/Lower Caves | Attracted the attention of an 0b10 outpost 11427 | -7/Lower Caves | Entered Data Miner 11427 | -7/Data Miner | Discovered new exit (range 6) 11451 | -7/Data Miner | Met Data Miner 11485 | -7/Data Miner | Learned location of Section 7 (-2) 11485 | -7/Data Miner | Acquired the access code to Warlord's prototype stash 11514 | -7/Data Miner | Received God Mode back door access code from Data Miner 11577 | -7/Data Miner | Entered Proximity Caves 12084 | -6/Proximity Caves | Learned Factory emergency access door positions 12160 | -6/Proximity Caves | Discovered new exit (range 9) 12168 | -6/Proximity Caves | Entered Factory 12168 | -6/Factory | Evolved 2 slots: Propulsion x1, Utility x1 12231 | -6/Factory | Discovered new exit (range 14) 12462 | -6/Factory | Build established: Hacker-Assassin 12834 | -6/Factory | Identified exit to Factory 12972 | -6/Factory | Identified exit to Lower Caves 12972 | -6/Factory | Identified exit to Extension 13073 | -6/Factory | Build established: Hacker-Scout 13089 | -6/Factory | Entered Lower Caves 13089 | -6/Lower Caves | Accompanied by 2 allies 13124 | -6/Lower Caves | Identified exit to Lower Caves 13492 | -6/Lower Caves | Entered another Lower Caves area 13492 | -6/Lower Caves | Accompanied by 2 allies 13495 | -6/Lower Caves | Discovered exit to Factory (range 18) 13589 | -6/Lower Caves | Learned 8 Factory zone layouts 13623 | -6/Lower Caves | Attracted the attention of an 0b10 checkpoint 13715 | -6/Lower Caves | Discovered new exit (range 15) 13718 | -6/Lower Caves | Learned Factory terminal intel 13733 | -6/Lower Caves | Encountered a Warlord checkpoint 13824 | -6/Lower Caves | Entered Zion 13824 | -6/Zion | Accompanied by 2 allies 13855 | -6/Zion | Discovered new exit (range 21) 13858 | -6/Zion | Visited the Megawrench Repair Shop 13858 | -6/Zion | Megawrench repaired 11 parts 13971 | -6/Zion | Learned location of Quarantine (-2) 13976 | -6/Zion | Acquired unknown access codes intercepted by a Zionite 14035 | -6/Zion | Given the Hacking Drone Bay 14099 | -6/Zion | Opened final containment barrier to the Deep Caves 14114 | -6/Zion | Discovered new exit (range 5) 14115 | -6/Zion | Saw the warning signs outside the Deep Caves entrance 14163 | -6/Zion | Entered Deep Caves 14163 | -6/Deep Caves | Accompanied by 2 allies 14233 | -6/Deep Caves | Z-Facility disabled 14256 | -6/Deep Caves | Attacked by Z-Imprinter 14269 | -6/Deep Caves | Lost 3 parts (2n1u) 14269 | -6/Deep Caves | Spotted AG-07934 14285 | -6/Deep Caves | Spotted AG-53486 14288 | -6/Deep Caves | Core integrity fell below 50% 14290 | -6/Deep Caves | Triggered Deep Caves wall 14295 | -6/Deep Caves | Core integrity fell below 20% 14297 | -6/Deep Caves | Destroyed by AG-53486 with Assembled Focal Cannon Last Messages --------------- 14220_ NEW_ZION: Z-Facility proximity alert. 14233_ Z-Facility disabled. 14236_ Cld. Cesium-ion Thruster destroyed. 14238_ Imp. Light Armor Plating destroyed. 14238_ Cld. Cesium-ion Thruster destroyed. 14239_ *Timmy destroyed. Z-Imprinter: GET AWAY FROM HERE! I've worked too hard for our future just to have you ruin everything! 14284_ Cld. Cesium-ion Thruster destroyed. 14287_ Hvy. Pick destroyed. 14287_ Mak. System Shield destroyed. 14288_ AG-53486: "DSI9AT1D G8OHIBQ29FWG 26R186 QD12WHW8W33 TDK1 81FTS" 14290_ The wall dematerializes. [Achievement: That's One Door That Should Stay Closed] 14290_ Imp. Deuterium Engine destroyed. 14291_ as-51227 destroyed. [Achievement: Hunted] 14296_ Gravity Neutralizer destroyed. 14297_ Cld. Cesium-ion Thruster destroyed. 14297_ Dropped Med. Storage Unit. Map ----- +----------------------------------------------------+ | | | | | | | | | | | | | | | | | | | | | | | | | | | | | ?????????"##########????????????????? | | ????????? ?????????????????? | | ?????????? #?????????????????? | | ????????""" ??????????????????? | | ????????" #####??????????????? | | ????????" # # #??????????????? | | ????????"" # # #??????????????? | | ????????" # #?##???????????? | | ????????"" # #? #???????????? | | ????????" #? #???????????? | | ????????""" ! #? #???????????? | | ????????"G !@! ## #???????????? | | ????????" !! # #####???????? | | ????????" #???????? | | ????????# ###???????? | | ????????"" a ##?????????? | | ?????????" ###??????????? | | ?????????"a #??????????? | | ?????????" #####?????????? | | ????????""aa Ia;## ###???????? | | ????????# a !g ha z ##" ""##??????? | | ????????# a * ! #??????? | | ????????# * * [ ! "###??????? | | ????????a ###??????? | | ????????aal z #??????? | | ????????a ###??????? | | ??????? a = = ##???????? | | ???????aa #???????? | | ???????a g #???????? | | ??????? = #???????? | | ??????### = = #??????## | | ????????"" = #?????## | | ?????????" ! #??#### | | ?????????" #?## | | ?????????" ### | | ?????????" = ! ## | +----------------------------------------------------+ Best States ------------- Heat Dissipation 37 Energy Generation 18 Energy Capacity 290 Matter Stores 300 Matter Capacity 300 Sight Range 22 Robot Scan Range 15 Terrain Scan Range 20 Terrain Scan Density 210 Jamming Range 12 Additional Mass Support 12 Armor Coverage 150 Power Shielding 66 Propulsion Shielding 66 Evasion (%) 72 Recoil Reduction 4 Offensive Hacking 22 Defensive Hacking 11 Item Schematics ----------------- Imp. Light Armor Plating | -7/Factory | Hacked Combat Drone Bay | -7/Data Miner | Free Lgt. Regenerative Plating | -7/Data Miner | Free Biomechanical Wings | -7/Data Miner | Free Thermal Defense Suite | -7/Data Miner | Free Imp. Heavy Laser | -7/Data Miner | Free Cmb. Gravmag System | -7/Data Miner | Free Imp. Kinecellerator | -7/Data Miner | Free Hyp. Gauss Cannon | -7/Data Miner | Free Hyp. Gauss Rifle | -7/Data Miner | Free Imp. Component Analysis Suite | -7/Data Miner | Free Lrn. Proton Cannon | -7/Data Miner | Free Adv. Reaction Control System | -7/Data Miner | Free Imp. Force Field | -7/Data Miner | Free Robot Schematics ------------------ O-24 Administrator | -7/Data Miner | Free A-15 Conveyor | -7/Data Miner | Free E-15 Imp | -7/Data Miner | Free X-57 Shotgunner | -7/Data Miner | Free B-48 Gladiator | -7/Data Miner | Free Y-54 Guardian | -7/Data Miner | Free R-10 Processor | -7/Data Miner | Free Fabricated ------------ Nothing Alien Tech Used ----------------- None Achievements -------------- Hunted Signs Are For Wimps That's One Door That Should Stay Closed Challenges ------------ None Game ------ Seed CatalystDynamicThermoblaster Manual? 0 Play Time 02:29:38 Cumulative 97.2 hours Start 2024.04.29 @ 06:21:20 End 2024.04.29 @ 09:47:29 Sessions 3 Manual Loads 0 Difficulty Rogue Special Mode None Game No. 106 Rogue 106 Adventurer 0 Explorer 0 Win Type - Total 2 Types 2/0/0/0/0/0/0/0/0 Lore% 46 Gallery% 46 Achievement% 43 Wizard Run 0 Options --------- Layout 0 ASCII 0 Keyboard 0 Movement Mouse Keybinds 0 Fullscreen 2 Font 18/X11Bold Map View 76x50 Zoom Use 0% Tactical HUD 1 Map Filters NONE Filters NONE Steam 1 RUN: 1fdad3b0-059c-43cf-b65e-1a3b4dac94d4